bitfinex-derivatives/quotes_ETHF0:USTF0_20260116
["timestamp","ask_amount","ask_price","bid_price","bid_amount"]
[1768525196915,0.92882864,3318.9,3317.9,1.37058037]
[1768525197219,1.21171065,3319.1,3317.9,1.37058037]
[1768525197420,0.92883187,3319.0,3317.9,1.37058037]
[1768525197618,0.92883187,3318.9,3317.9,1.37058037]
[1768525197820,1.21171065,3319.1,3317.9,1.37058037]
[1768525198015,0.92883168,3319.0,3317.9,1.37058037]
[1768525198316,0.92883168,3318.9,3317.9,1.37058037]
[1768525198516,1.21171065,3319.1,3317.9,1.37058037]
[1768525198720,0.92883455,3319.0,3318.0,1.45347863]
[1768525198908,0.92883455,3318.9,3318.0,1.45347863]
[1768525199110,0.15065,3319.7,3318.4,1.45347863]
[1768525199307,2.50273822,3319.6,3318.4,1.45347863]
[1768525199521,1.29102757,3319.5,3318.4,1.45347863]
[1768525199723,2.50274169,3319.4,3318.4,1.45347863]
[1768525199926,0.92858178,3319.3,3318.4,1.45347863]
[1768525200114,0.92858178,3319.2,3318.4,1.45347863]
[1768525200314,0.15065,3319.7,3318.4,1.45347863]
[1768525200623,2.49558392,3319.6,3318.4,1.45347863]
[1768525200813,1.28418129,3319.5,3318.4,1.45347863]
[1768525201018,0.92856725,3319.4,3318.4,1.45347863]
[1768525201221,0.92856725,3319.3,3318.4,1.45347863]
[1768525201424,1.21140263,3319.5,3318.4,1.45347863]
[1768525201626,0.92834608,3319.4,3318.4,1.45347863]
[1768525201924,0.92834608,3319.3,3318.4,1.45347863]
[1768525202122,1.21140263,3319.5,3318.4,1.45347863]
[1768525202321,0.92833473,3319.4,3318.4,1.45347863]
[1768525202619,0.92833473,3319.3,3318.4,1.45347863]
[1768525202923,0.00284586,3319.8,3318.4,1.45347863]
[1768525202924,1.21140263,3319.7,3318.4,1.45347863]
[1768525203115,1.28368148,3319.6,3318.4,1.45347863]
[1768525203317,0.92820554,3319.5,3318.4,1.45347863]
[1768525203522,1.21140263,3319.7,3318.4,1.45347863]
[1768525203825,1.2834988,3319.6,3318.4,1.45347863]
[1768525204024,0.92807346,3319.5,3318.4,1.45347863]
[1768525204721,0.92807346,3319.5,3318.5,1.45347863]
[1768525205020,1.21424849,3319.8,3318.5,1.45347863]
[1768525205327,1.21140263,3319.4,3318.5,1.45347863]
[1768525207024,1.21140263,3319.6,3318.5,1.45347863]
[1768525214629,1.21140263,3319.5,3318.5,1.45347863]
[1768525216635,0.00284586,3319.8,3318.5,1.45347863]
[1768525216928,1.21140263,3319.4,3318.5,1.45347863]
[1768525217135,1.21140263,3319.5,3318.5,1.45347863]
[1768525218427,0.00284586,3319.8,3318.5,1.45347863]
[1768525218630,2.13713567,3319.7,3318.5,1.45347863]
[1768525218822,1.21140263,3319.7,3318.5,1.45347863]
[1768525220332,0.00284586,3319.8,3318.5,1.45347863]
[1768525220536,2.13721291,3319.7,3318.5,1.45347863]
[1768525220722,1.21140263,3319.7,3318.5,1.45347863]
[1768525221433,0.00284586,3319.8,3318.5,1.45347863]
[1768525221627,0.92585841,3319.7,3318.5,1.45347863]
[1768525221832,1.21424849,3319.8,3318.5,1.45347863]
[1768525222034,0.92585837,3319.7,3318.5,1.45347863]
[1768525222337,1.21424849,3319.8,3318.5,1.45347863]
[1768525222534,0.92592142,3319.7,3318.5,1.45347863]
[1768525222732,1.21424849,3319.8,3318.5,1.45347863]
[1768525222933,0.92592052,3319.7,3318.5,1.45347863]
[1768525223136,1.21424849,3319.8,3318.5,1.45347863]
[1768525223326,0.92590302,3319.7,3318.5,1.45347863]
[1768525223634,1.21424849,3319.8,3318.5,1.45347863]
[1768525223835,0.92586524,3319.7,3318.5,1.45347863]
[1768525224135,1.21424849,3319.8,3318.5,1.45347863]
[1768525224435,0.92593646,3319.7,3318.5,1.45347863]
[1768525224740,1.21424849,3319.8,3318.5,1.45347863]
[1768525225035,0.92594883,3319.7,3318.5,1.45347863]
[1768525225234,1.21424849,3319.8,3318.5,1.45347863]
[1768525225430,0.9260685,3319.7,3318.5,1.45347863]
[1768525225626,1.21424849,3319.8,3318.5,1.45347863]
[1768525225934,0.92604045,3319.7,3318.5,1.45347863]
[1768525226133,1.21424849,3319.8,3318.5,1.45347863]
[1768525226433,1.21140263,3319.6,3318.5,1.45347863]
[1768525226833,0.00284586,3319.8,3318.5,1.45347863]
[1768525227034,1.21140263,3319.4,3318.5,1.45347863]
[1768525235538,0.00284586,3319.8,3318.5,1.45347863]
[1768525235839,1.21140263,3319.5,3318.5,1.45347863]
[1768525236545,0.00284586,3319.8,3318.5,1.45347863]
[1768525236740,1.21140263,3319.5,3318.5,1.45347863]
[1768525237143,1.21140263,3319.7,3318.5,1.45347863]
[1768525237341,0.92747295,3319.6,3318.5,1.45347863]
[1768525237641,1.21140263,3319.7,3318.5,1.45347863]
[1768525237831,0.92724802,3319.6,3318.5,1.45347863]
[1768525238032,1.21140263,3319.7,3318.5,1.45347863]
[1768525238342,1.21140263,3319.5,3318.5,1.45347863]
[1768525238943,1.21140263,3319.7,3318.5,1.45347863]
[1768525239143,0.92683964,3319.6,3318.9,1.51779724]
[1768525239442,0.00284586,3319.8,3318.9,1.51779724]
[1768525239634,0.9268324,3319.7,3318.9,1.51779724]
[1768525239838,0.00284586,3319.8,3318.9,1.51779724]
[1768525240145,0.926827,3319.7,3318.9,1.51779724]
[1768525240346,0.00284586,3319.8,3318.9,1.51779724]
[1768525242747,0.92643711,3319.7,3318.9,1.51779724]
[1768525242946,0.92643711,3319.6,3318.9,1.51779724]
[1768525243147,0.00284586,3319.8,3318.9,1.51779724]
[1768525243347,0.92643034,3319.7,3318.9,1.51779724]
[1768525243645,0.00284586,3319.8,3318.9,1.51779724]
[1768525243947,0.92637057,3319.7,3318.9,1.51779724]
[1768525244146,0.00284586,3319.8,3318.9,1.51779724]
[1768525244348,0.92637225,3319.7,3318.9,1.51779724]
[1768525244542,0.00284586,3319.8,3318.9,1.51779724]
[1768525244740,0.92632567,3319.7,3318.9,1.51779724]
[1768525244940,0.00284586,3319.8,3318.9,1.51779724]
[1768525245143,0.9263253,3319.7,3318.9,1.51779724]
[1768525245346,0.00284586,3319.8,3318.9,1.51779724]
[1768525245542,0.9262896,3319.7,3318.9,1.51779724]
[1768525245744,0.00284586,3319.8,3318.9,1.51779724]
[1768525246051,2.1376932,3319.7,3318.9,1.51779724]
[1768525246251,1.21140263,3319.7,3318.9,1.51779724]
[1768525246541,1.21424849,3319.8,3318.9,1.51779724]
[1768525246746,0.92620275,3319.7,3318.9,1.51779724]
[1768525246950,0.92620275,3319.6,3318.9,1.51779724]
[1768525247144,1.21424849,3319.8,3318.9,1.51779724]
[1768525247342,0.92617048,3319.7,3318.9,1.51779724]
[1768525247541,1.21424849,3319.8,3318.9,1.51779724]
[1768525247845,0.92613258,3319.7,3318.9,1.51779724]
[1768525248041,1.21424849,3319.8,3318.9,1.51779724]
[1768525248237,0.92611064,3319.7,3318.9,1.51779724]
[1768525248451,1.21424849,3319.8,3318.9,1.51779724]
[1768525248649,0.92609603,3319.7,3318.9,1.51779724]
[1768525248949,0.92609463,3319.6,3318.9,1.51779724]
[1768525249150,1.21424849,3319.8,3318.9,1.51779724]
[1768525249446,0.92609377,3319.7,3318.9,1.51779724]
[1768525249645,1.21424849,3319.8,3318.9,1.51779724]
[1768525249840,0.92607514,3319.7,3318.9,1.51779724]
[1768525250041,1.21424849,3319.8,3318.9,1.51779724]
[1768525250244,0.92607381,3319.7,3318.9,1.51779724]
[1768525250445,1.21424849,3319.8,3318.9,1.51779724]
[1768525250646,0.92605875,3319.7,3318.9,1.51779724]
[1768525250844,1.21424849,3319.8,3318.9,1.51779724]
[1768525251141,0.92605813,3319.7,3318.9,1.51779724]
[1768525251343,0.00284586,3319.8,3318.9,1.51779724]
[1768525251641,0.92604816,3319.7,3318.9,1.51779724]
[1768525251842,0.00284586,3319.8,3318.9,1.51779724]
[1768525252050,0.92604816,3319.7,3318.9,1.51779724]
[1768525252253,0.92604267,3319.6,3318.9,1.51779724]
[1768525252450,0.00284586,3319.8,3318.9,1.51779724]
[1768525252649,0.9260422,3319.7,3318.9,1.51779724]
[1768525252949,0.00284586,3319.8,3318.9,1.51779724]
[1768525253152,0.92584127,3319.7,3318.3,1.54394988]
[1768525253342,0.92572621,3319.6,3318.3,1.54394988]
[1768525253538,1.2140983,3319.8,3318.3,1.54394988]
[1768525253750,0.9256845,3319.7,3318.3,1.54394988]
[1768525253951,0.9256845,3319.6,3318.3,1.54394988]
[1768525254143,1.2140983,3319.8,3318.3,1.54394988]
[1768525254342,0.9256748,3319.7,3318.3,1.54394988]
[1768525254638,0.9256748,3319.6,3318.3,1.54394988]
[1768525254844,1.2140983,3319.8,3318.3,1.54394988]
[1768525255043,0.92567488,3319.7,3318.3,1.54394988]
[1768525255253,0.92567488,3319.6,3318.3,1.54394988]
[1768525255455,1.2140983,3319.8,3318.3,1.54394988]
[1768525255644,0.92572517,3319.7,3318.3,1.54394988]
[1768525255844,0.92572517,3319.6,3318.3,1.54394988]
[1768525256046,1.2140983,3319.8,3318.3,1.54394988]
[1768525256246,0.92572857,3319.7,3318.3,1.54394988]
[1768525256447,0.92572857,3319.6,3318.3,1.54394988]
[1768525256647,1.2140983,3319.8,3318.3,1.54394988]
[1768525256852,0.92572952,3319.7,3318.3,1.54394988]
[1768525257056,0.92572952,3319.6,3318.3,1.54394988]
[1768525257252,1.2140983,3319.8,3318.3,1.54394988]
[1768525257548,0.92573255,3319.7,3318.3,1.54394988]
[1768525257748,1.2140983,3319.8,3318.3,1.54394988]
[1768525257749,0.92573255,3319.6,3318.3,1.54394988]
[1768525258047,1.2140983,3319.8,3318.3,1.54394988]
[1768525258249,0.92573255,3319.7,3318.3,1.54394988]
[1768525258445,1.2140983,3319.8,3318.3,1.54394988]
[1768525258446,0.92573255,3319.6,3318.3,1.54394988]
[1768525258653,1.2140983,3319.8,3318.3,1.54394988]
[1768525258847,0.92573099,3319.7,3318.3,1.54394988]
[1768525259046,1.2140983,3319.8,3318.3,1.54394988]
[1768525259047,0.92573099,3319.6,3318.3,1.54394988]
[1768525259255,1.2140983,3319.8,3318.3,1.54394988]
[1768525259459,0.92573387,3319.7,3318.3,1.54394988]
[1768525259658,0.92573387,3319.6,3318.3,1.54394988]
[1768525259957,1.2140983,3319.8,3318.3,1.54394988]
[1768525260149,0.92573105,3319.7,3318.3,1.54394988]
[1768525260347,0.92573105,3319.6,3318.3,1.54394988]
[1768525260551,1.2140983,3319.8,3318.3,1.54394988]
[1768525260757,0.92573125,3319.7,3318.3,1.54394988]
[1768525260954,0.92573125,3319.6,3318.3,1.54394988]
[1768525261246,1.2140983,3319.8,3318.3,1.54394988]
[1768525261460,0.92573147,3319.7,3318.3,1.54394988]
[1768525261650,0.92573147,3319.6,3318.3,1.54394988]
[1768525261852,1.2140983,3319.8,3318.3,1.54394988]
[1768525262056,0.92573019,3319.7,3318.3,1.54394988]
[1768525262258,0.92573019,3319.6,3318.3,1.54394988]
[1768525262449,1.2140983,3319.8,3318.3,1.54394988]
[1768525262657,0.92568706,3319.7,3318.3,1.54394988]
[1768525262855,0.92568706,3319.6,3318.3,1.54394988]
[1768525263056,1.2140983,3319.8,3318.3,1.54394988]
[1768525263246,0.9256739,3319.7,3318.3,1.54394988]
[1768525263446,0.9256739,3319.6,3318.3,1.54394988]
[1768525263650,1.2140983,3319.8,3318.3,1.54394988]
[1768525263850,0.9256124,3319.7,3318.3,1.54394988]
[1768525264051,0.9256124,3319.6,3318.3,1.54394988]
[1768525264252,1.2140983,3319.8,3318.3,1.54394988]
[1768525264559,0.92558465,3319.7,3318.3,1.54394988]
[1768525264759,0.92558465,3319.6,3318.3,1.54394988]
[1768525264956,1.2140983,3319.8,3318.3,1.54394988]
[1768525265258,0.92558606,3319.7,3318.3,1.54394988]
[1768525265455,0.92558606,3319.6,3318.3,1.54394988]
[1768525265654,1.2140983,3319.8,3318.3,1.54394988]
[1768525265860,0.92556897,3319.7,3318.3,1.54394988]
[1768525266061,0.92556897,3319.6,3318.3,1.54394988]
[1768525266363,0.00284586,3319.8,3318.3,1.54394988]
[1768525266566,0.92555439,3319.7,3318.3,1.54394988]
[1768525266863,0.92555439,3319.6,3318.3,1.54394988]
[1768525267164,0.00284586,3319.8,3318.3,1.54394988]
[1768525267366,0.92553284,3319.7,3318.3,1.54394988]
[1768525267565,0.92553284,3319.6,3318.3,1.54394988]
[1768525267868,0.92553284,3319.6,3317.2,5.37828839]
[1768525267869,1.21125244,3319.2,3317.3,1.54394988]
[1768525268157,0.92535274,3319.1,3317.3,1.54394988]
[1768525269249,0.92535274,3319.1,3317.6,1.54394988]
[1768525269449,0.15066,3319.5,3317.6,1.54394988]
[1768525269665,0.92467937,3319.4,3317.6,1.54394988]
[1768525269968,0.92467937,3319.3,3317.6,1.54394988]
[1768525270265,0.15066,3319.5,3317.6,1.54394988]
[1768525270564,0.92454212,3319.4,3317.6,1.54394988]
[1768525270759,0.92454212,3319.3,3317.6,1.54394988]
[1768525270959,0.15066,3319.5,3317.6,1.54394988]
[1768525271163,0.92454073,3319.4,3317.6,1.54394988]
[1768525271358,0.92454073,3319.3,3317.6,1.54394988]
[1768525271551,0.15066,3319.5,3317.6,1.54394988]
[1768525271754,0.9244284,3319.4,3317.6,1.54394988]
[1768525272063,0.9244284,3319.3,3317.6,1.54394988]
[1768525272357,0.00284586,3319.8,3318.0,1.54394988]
[1768525272563,0.92440784,3319.7,3318.0,1.54394988]
[1768525272863,0.00284586,3319.8,3318.0,1.54394988]
[1768525273058,0.92449301,3319.7,3318.0,1.54394988]
[1768525273363,0.00284586,3319.8,3318.0,1.54394988]
[1768525273661,0.92452327,3319.7,3318.0,1.54394988]
[1768525273862,0.00284586,3319.8,3318.0,1.54394988]
[1768525274169,0.92452747,3319.7,3318.0,1.54394988]
[1768525274464,0.00284586,3319.8,3318.0,1.54394988]
[1768525274661,0.92459193,3319.7,3318.0,1.54394988]
[1768525274861,0.00284586,3319.8,3318.0,1.54394988]
[1768525275054,0.92459172,3319.7,3318.0,1.54394988]
[1768525275250,0.00284586,3319.8,3318.0,1.54394988]
[1768525275457,0.92463171,3319.7,3318.0,1.54394988]
[1768525275655,0.00284586,3319.8,3318.0,1.54394988]
[1768525275959,0.92462784,3319.7,3318.0,1.54394988]
[1768525276159,1.2140983,3319.8,3318.0,1.54394988]
[1768525276467,0.92467647,3319.7,3318.0,1.54394988]
[1768525276661,0.92467647,3319.6,3318.0,1.54394988]
[1768525276867,0.92467647,3319.5,3318.0,1.54394988]
[1768525277163,1.2140983,3319.8,3318.0,1.54394988]
[1768525277349,1.25798572,3319.7,3318.0,1.54394988]
[1768525277553,1.2140983,3319.8,3318.0,1.54394988]
[1768525277554,0.92480505,3319.6,3318.0,1.54394988]
[1768525277765,0.92480505,3319.5,3318.0,1.54394988]
[1768525277961,1.2140983,3319.8,3318.0,1.54394988]
[1768525278161,1.25798492,3319.7,3318.0,1.54394988]
[1768525278355,0.92480446,3319.6,3318.0,1.54394988]
[1768525278559,0.92480446,3319.5,3318.0,1.54394988]
[1768525278754,1.3647383,3319.8,3318.0,1.54394988]
[1768525278960,1.25802721,3319.7,3318.0,1.54394988]
[1768525279158,0.92483619,3319.6,3318.0,1.54394988]
[1768525279359,0.92483619,3319.5,3318.0,1.54394988]
[1768525279560,0.92483619,3319.4,3318.0,1.54394988]
[1768525279762,1.00004083,3319.8,3318.0,1.54394988]
[1768525280062,1.25803844,3319.7,3318.0,1.54394988]
[1768525280260,1.25803844,3319.6,3318.0,1.54394988]
[1768525280470,0.92484494,3319.5,3318.0,1.54394988]
[1768525280673,0.92484494,3319.4,3318.0,1.54394988]
[1768525280970,1.00004083,3319.8,3318.0,1.54394988]
[1768525281179,1.25809693,3319.7,3318.0,1.54394988]
[1768525281469,1.25809693,3319.6,3318.0,1.54394988]
[1768525281659,0.92489028,3319.5,3318.0,1.54394988]
[1768525281860,0.92489028,3319.4,3318.0,1.54394988]
[1768525282161,1.00004083,3319.8,3318.0,1.54394988]
[1768525282360,1.25824745,3319.7,3318.0,1.54394988]
[1768525282560,1.25824745,3319.6,3318.0,1.54394988]
[1768525282860,0.92499995,3319.5,3318.0,1.54394988]
[1768525283060,0.92499995,3319.4,3318.0,1.54394988]
[1768525283360,1.00004083,3319.8,3318.0,1.54394988]
[1768525283560,1.25828734,3319.7,3318.0,1.54394988]
[1768525283763,0.92502149,3319.6,3318.0,1.54394988]
[1768525283964,0.92502149,3319.5,3318.0,1.54394988]
[1768525284175,0.92502149,3319.4,3318.0,1.54394988]
[1768525284367,1.21125244,3319.5,3318.0,1.54394988]
[1768525284564,0.92502637,3319.4,3318.0,1.54394988]
[1768525284772,0.92502219,3319.3,3318.0,1.54394988]
[1768525285072,1.21125244,3319.5,3318.0,1.54394988]
[1768525285273,0.92502861,3319.4,3318.0,1.54394988]
[1768525285472,0.92502861,3319.3,3318.0,1.54394988]
[1768525285675,0.15065,3319.7,3318.0,1.54394988]
[1768525285872,1.21125244,3319.5,3318.0,1.54394988]
[1768525286072,0.92502864,3319.4,3318.0,1.54394988]
[1768525286264,0.92502864,3319.3,3318.0,1.54394988]
[1768525286467,1.21125244,3319.5,3318.0,1.54394988]
[1768525286668,0.92504258,3319.4,3318.0,1.54394988]
[1768525286868,0.92504258,3319.3,3318.0,1.54394988]
[1768525287074,1.21125244,3319.5,3318.0,1.54394988]
[1768525287281,0.9250504,3319.4,3318.0,1.54394988]
[1768525287475,0.9250504,3319.3,3318.0,1.54394988]
[1768525287675,1.21125244,3319.5,3318.0,1.54394988]
[1768525287876,0.92506929,3319.4,3318.0,1.54394988]
[1768525288067,0.92506929,3319.3,3318.0,1.54394988]
[1768525288266,1.21125244,3319.5,3318.0,1.54394988]
[1768525288467,0.92510581,3319.4,3318.0,1.54394988]
[1768525288673,0.92510581,3319.3,3318.0,1.54394988]
[1768525288972,1.21125244,3319.5,3318.0,1.54394988]
[1768525289276,0.92510509,3319.4,3318.0,1.54394988]
[1768525289568,0.92510509,3319.3,3318.0,1.54394988]
[1768525289776,1.21125244,3319.5,3318.0,1.54394988]
[1768525289962,0.92502198,3319.4,3318.0,1.54394988]
[1768525290263,0.92502198,3319.3,3318.0,1.54394988]
[1768525290465,1.21125244,3319.5,3318.0,1.54394988]
[1768525290661,0.92503311,3319.4,3318.0,1.54394988]
[1768525290965,0.92503311,3319.3,3318.0,1.54394988]
[1768525291161,1.21125244,3319.5,3318.0,1.54394988]
[1768525291362,0.92508563,3319.4,3318.0,1.54394988]
[1768525291569,0.92508563,3319.3,3318.0,1.54394988]
[1768525291761,1.21125244,3319.5,3318.0,1.54394988]
[1768525291976,0.92504278,3319.4,3318.0,1.54394988]
[1768525292175,0.92504278,3319.3,3318.0,1.54394988]
[1768525292373,1.21125244,3319.5,3318.0,1.54394988]
[1768525292574,0.92508023,3319.4,3318.0,1.54394988]
[1768525292877,0.92508023,3319.3,3318.0,1.54394988]
[1768525293080,0.92508023,3319.2,3318.0,1.54394988]
[1768525293278,1.21125244,3319.5,3318.0,1.54394988]
[1768525293575,0.92512995,3319.4,3318.0,1.54394988]
[1768525293777,0.92512995,3319.3,3318.0,1.54394988]
[1768525293979,0.92512995,3319.2,3318.0,1.54394988]
[1768525294177,1.21125244,3319.5,3318.0,1.54394988]
[1768525294479,1.21125244,3319.1,3317.2,1.56019228]
[1768525294678,0.92506779,3319.0,3317.2,1.56019228]
[1768525294879,0.92506779,3318.9,3317.2,1.56019228]
[1768525295083,0.92506779,3318.8,3317.2,1.56019228]
[1768525295277,0.92506779,3318.7,3317.2,1.56019228]
[1768525295574,1.21125244,3318.8,3317.2,1.56019228]
[1768525295773,0.92480774,3318.7,3317.2,1.56019228]
[1768525295974,1.21125244,3318.8,3317.2,1.56019228]
[1768525296178,0.92480519,3318.7,3317.2,1.56019228]
[1768525296477,1.21125244,3318.8,3317.2,1.56019228]
[1768525296678,0.9246543,3318.7,3317.2,1.56019228]
[1768525296877,1.21125244,3318.8,3317.2,1.56019228]
[1768525297074,0.9246543,3318.7,3317.2,1.56019228]
[1768525297277,0.15068,3319.1,3317.2,1.56019228]
[1768525297475,0.92456302,3319.0,3317.2,1.56019228]
[1768525297677,0.92456302,3318.9,3317.2,1.56019228]
[1768525297879,0.92456302,3318.8,3317.2,1.56019228]
[1768525298184,0.15068,3319.1,3317.2,1.56019228]
[1768525298385,0.92611156,3319.0,3317.2,1.56019228]
[1768525298580,0.92611156,3318.9,3317.2,1.56019228]
[1768525298788,0.92611156,3318.8,3317.2,1.56019228]
[1768525298986,0.15068,3319.1,3317.2,1.56019228]
[1768525299286,0.92600618,3319.0,3317.2,1.56019228]
[1768525299488,0.92600618,3318.9,3317.2,1.56019228]
[1768525299677,0.92600618,3318.8,3317.2,1.56019228]
[1768525299876,0.15068,3319.1,3317.2,1.56019228]
[1768525300088,0.92593451,3319.0,3317.5,1.56019228]
[1768525300286,0.92593451,3318.9,3317.5,1.56019228]
[1768525300486,0.15068,3319.1,3317.5,1.56019228]
[1768525300690,0.92589064,3319.0,3317.5,1.56019228]
[1768525300893,0.92589064,3318.9,3317.5,1.56019228]
[1768525301186,0.15068,3319.1,3317.5,1.56019228]
[1768525301389,0.92583675,3319.0,3317.5,1.56019228]
[1768525301593,0.92583675,3318.9,3317.5,1.56019228]
[1768525301781,0.15068,3319.1,3317.5,1.56019228]
[1768525302085,0.92583543,3319.0,3317.5,1.56019228]
[1768525302379,0.92583543,3318.9,3317.5,1.56019228]
[1768525302582,0.15068,3319.1,3317.5,1.56019228]
[1768525303186,0.92580134,3319.0,3317.5,1.56019228]
[1768525303384,0.15068,3319.1,3317.5,1.56019228]
[1768525303587,0.92579901,3319.0,3317.5,1.56019228]
[1768525303780,0.15068,3319.1,3317.5,1.56019228]
[1768525303980,0.92579991,3319.0,3317.5,1.56019228]
[1768525304187,0.15068,3319.1,3317.5,1.56019228]
[1768525304387,0.925837,3319.0,3317.5,1.56019228]
[1768525304587,0.15068,3319.1,3317.5,1.56019228]
[1768525304783,0.925837,3319.0,3317.5,1.56019228]
[1768525304980,0.15068,3319.1,3317.5,1.56019228]
[1768525305182,0.92583672,3319.0,3317.5,1.56019228]
[1768525305384,0.15068,3319.1,3317.5,1.56019228]
[1768525305583,0.92591095,3319.0,3317.5,1.56019228]
[1768525305785,0.15068,3319.1,3317.5,1.56019228]
[1768525305986,0.92590988,3319.0,3317.5,1.56019228]
[1768525306186,0.15068,3319.1,3317.5,1.56019228]
[1768525306388,0.92600608,3319.0,3317.5,1.56019228]
[1768525306580,0.92600608,3318.9,3317.5,1.56019228]
[1768525306779,0.15068,3319.1,3317.5,1.56019228]
[1768525306980,0.92602081,3319.0,3317.5,1.56019228]
[1768525307175,0.92602081,3318.9,3317.5,1.56019228]
[1768525307383,1.21125244,3318.3,3316.9,1.56019228]
[1768525307583,0.92602081,3318.2,3316.9,1.56019228]
[1768525307887,0.88116586,3318.5,3316.9,1.56019228]
[1768525307888,0.92602081,3318.1,3316.9,1.56019228]
[1768525308181,1.21125244,3318.4,3316.9,1.56019228]
[1768525308385,0.9252623,3318.3,3316.9,1.56019228]
[1768525308590,0.9252623,3318.2,3316.9,1.56019228]
[1768525308782,0.92526307,3318.1,3316.9,1.56019228]
[1768525308992,1.21125244,3318.4,3316.9,1.56019228]
[1768525309193,0.92526093,3318.3,3316.9,1.56019228]
[1768525309490,0.92526093,3318.2,3316.9,1.56019228]
[1768525309689,1.21125244,3318.4,3316.9,1.56019228]
[1768525309992,0.92481961,3318.3,3316.9,1.56019228]
[1768525310188,0.92481961,3318.2,3316.9,1.56019228]
[1768525310485,1.21125244,3318.4,3316.9,1.56019228]
[1768525310682,0.92447127,3318.3,3316.9,1.56019228]
[1768525310989,0.92447127,3318.2,3316.9,1.56019228]
[1768525311290,1.21125244,3318.4,3316.9,1.56019228]
[1768525311488,0.92417882,3318.3,3316.9,1.56019228]
[1768525311691,0.92417882,3318.2,3316.8,0.00241939]
[1768525311989,0.88519016,3318.3,3316.8,0.00241939]
[1768525312188,0.92417225,3318.2,3316.8,0.00241939]
[1768525312392,0.88519016,3318.3,3316.8,0.00241939]
[1768525312586,0.92393348,3318.2,3316.8,0.00241939]
[1768525312780,0.88519016,3318.3,3316.8,0.00241939]
[1768525312988,0.92393251,3318.2,3316.8,0.00241939]
[1768525313187,0.88519016,3318.3,3316.8,0.00241939]
[1768525313388,1.21272811,3317.8,3316.8,0.00241939]
[1768525314097,0.88519016,3318.3,3316.8,0.00241939]
[1768525314098,1.21272811,3317.6,3316.8,0.00241939]
[1768525314792,1.21272811,3317.8,3316.8,0.00241939]
[1768525317388,0.88519016,3318.3,3316.8,0.00241939]
[1768525317690,1.21272811,3317.8,3316.8,0.00241939]
[1768525323505,0.89451889,3319.2,3317.4,1.51108244]
[1768525323796,1.21272811,3318.6,3317.4,1.51108244]
[1768525324701,1.21272811,3318.8,3317.4,1.51108244]
[1768525324904,1.21272811,3318.8,3317.6,1.51108244]
[1768525326103,0.15068,3319.0,3317.6,1.51108244]
[1768525326104,1.21272811,3318.6,3317.6,1.51108244]
[1768525327198,1.21272811,3318.6,3317.2,1.51108244]
[1768525327406,1.21272811,3318.4,3317.2,1.51108244]
[1768525327799,1.21272811,3318.2,3317.2,1.51108244]
[1768525328301,1.21272811,3318.0,3316.8,1.51350183]
[1768525329502,1.21272811,3318.2,3316.9,1.51108244]
[1768525330511,1.21272811,3318.0,3316.9,1.51108244]
[1768525331010,1.21272811,3317.8,3316.9,1.51108244]
[1768525331317,1.21272811,3317.8,3316.8,0.00241939]
[1768525333716,1.21272811,3317.5,3316.8,0.00241939]
[1768525334218,1.21272811,3317.7,3316.8,0.00241939]
[1768525334819,1.21272811,3317.3,3316.8,0.00241939]
[1768525335006,1.2166335,3317.3,3316.8,0.00241939]
[1768525335206,1.2166335,3317.3,3316.8,0.00116635]
[1768525335513,0.00390539,3317.3,3316.3,1.21272811]
[1768525335714,0.00390539,3317.3,3316.2,1.21272811]
[1768525335912,0.00390539,3317.3,3316.3,1.51108244]
[1768525336314,0.00390539,3317.3,3316.3,1.51450132]
[1768525337512,1.21272811,3317.2,3316.3,1.51450132]
[1768525339024,0.00390539,3317.3,3316.3,1.51450132]
[1768525340015,1.21272811,3317.1,3316.3,0.00341888]
[1768525340514,0.00390539,3317.3,3316.3,0.00341888]
[1768525341723,1.2166335,3317.3,3316.3,0.00341888]
[1768525342624,1.21272811,3317.1,3316.3,0.00341888]
[1768525342828,1.21272811,3316.9,3316.3,0.00341888]
[1768525345124,0.00390539,3317.3,3316.3,0.00341888]
[1768525345324,1.21272811,3317.2,3316.3,0.00341888]
[1768525346121,0.00390539,3317.3,3316.3,0.00341888]
[1768525346122,0.00390539,3317.3,3316.4,1.21272811]
[1768525346321,0.00390539,3317.3,3316.3,1.58924137]
[1768525348930,0.00390539,3317.3,3316.3,0.00341888]
[1768525349226,1.2166335,3317.3,3316.0,1.58582249]
[1768525349430,0.00390539,3317.3,3316.1,2.7985506]
[1768525349635,0.00390539,3317.3,3316.3,2.7985506]
[1768525350135,0.00390539,3317.3,3316.3,2.80096752]
[1768525354038,0.00390539,3317.3,3316.3,1.58823941]
[1768525357523,0.00390539,3317.3,3316.3,2.80096752]
[1768525357730,0.15074,3317.8,3316.7,2.7985506]
[1768525357928,0.15074,3317.8,3316.7,1.58582249]
[1768525358134,1.36346811,3317.8,3316.7,1.58582249]
[1768525358730,1.21272811,3317.6,3316.7,1.58582249]
[1768525358930,0.15074,3317.8,3316.3,1.58823941]
[1768525358931,1.21272811,3317.4,3316.3,1.58823941]
[1768525365543,1.21272811,3317.2,3316.3,1.58823941]
[1768525368030,1.21272811,3317.2,3316.3,0.00241692]
[1768525368235,1.21272811,3317.0,3316.3,0.00241692]
[1768525369647,1.21272811,3317.2,3316.3,0.00241692]
[1768525371245,1.21272811,3317.0,3316.3,0.00241692]
[1768525372349,1.10698244,3317.6,3316.3,0.00241692]
[1768525372549,1.21272811,3317.0,3316.3,0.00241692]
[1768525373355,4.23025068,3317.5,3316.3,0.00241692]
[1768525373653,0.92650103,3317.4,3316.3,0.00241692]
[1768525373846,0.92650103,3317.3,3316.3,0.00241692]
[1768525374051,3.16774,3317.6,3316.3,1.57709236]
[1768525374254,0.92650984,3317.5,3316.3,1.57709236]
[1768525374443,3.16774,3317.6,3316.3,1.57709236]
[1768525374643,0.9265451,3317.5,3316.3,1.57709236]
[1768525374842,3.16774,3317.6,3316.3,1.57709236]
[1768525375057,0.92654273,3317.5,3316.3,1.57709236]
[1768525375254,3.16774,3317.6,3316.3,1.57709236]
[1768525375455,0.926556,3317.5,3316.3,1.57709236]
[1768525375642,3.16774,3317.6,3316.3,1.57709236]
[1768525375958,0.92655701,3317.5,3316.3,1.57709236]
[1768525376155,0.00374611,3317.8,3316.3,1.57709236]
[1768525376351,1.25751436,3317.7,3316.3,1.57709236]
[1768525376560,1.25751436,3317.6,3316.3,1.57709236]
[1768525376759,0.92655847,3317.5,3316.3,1.57709236]
[1768525377059,0.00374611,3317.8,3316.3,1.57709236]
[1768525377360,1.25751579,3317.7,3316.3,1.57709236]
[1768525377658,1.25751579,3317.6,3316.3,1.57709236]
[1768525377861,0.92655998,3317.5,3316.3,1.57709236]
[1768525378162,0.00374611,3317.8,3316.3,1.57709236]
[1768525378350,1.25749887,3317.7,3316.3,1.57709236]
[1768525378560,1.25749887,3317.6,3316.3,1.57709236]
[1768525378870,0.9265431,3317.5,3316.3,1.57709236]
[1768525379071,0.00374611,3317.8,3316.3,1.57709236]
[1768525379268,1.25751764,3317.7,3316.3,1.57709236]
[1768525379455,1.25751764,3317.6,3316.3,1.57709236]
[1768525379662,0.92656144,3317.5,3316.3,1.57709236]
[1768525379862,0.92662543,3317.4,3316.3,1.57709236]